bitfinex/quotes_SOLUSD_20251130
["timestamp","ask_amount","ask_price","bid_price","bid_amount"]
[1764544159684,8.00306778,136.93,136.89,5.63120326]
[1764544160390,7.30306778,136.93,136.9,0.71]
[1764544160856,8.00306778,136.93,136.9,0.71]
[1764544161362,8.00306778,136.93,136.89,5.63120326]
[1764544161678,7.30250071,136.94,136.9,12.93565281]
[1764544161849,7.30250071,136.94,136.91,0.71]
[1764544163560,7.30207566,136.95,136.91,12.93520058]
[1764544163760,8.84120326,136.98,136.93,4.92120326]
[1764544163970,7.30134946,136.97,136.93,4.92120326]
[1764544164280,8.00134946,136.97,136.94,0.71]
[1764544165083,8.00134946,136.97,136.93,12.93411489]
[1764544165379,8.00134946,136.97,136.94,0.71]
[1764544166245,7.30134946,136.97,136.94,0.71]
[1764544166648,8.00134946,136.97,136.94,0.71]
[1764544166866,7.30134946,136.97,136.94,0.71]
[1764544167250,8.00134946,136.97,136.94,0.71]
[1764544167671,7.30134946,136.97,136.94,0.71]
[1764544168184,7.30134946,136.97,136.94,5.63120326]
[1764544170383,7.29894367,137.01,136.96,4.92120326]
[1764544170684,0.7,137.0,136.97,5.58120326]
[1764544171069,0.7,137.0,136.96,5.58120326]
[1764544171375,0.7,137.0,136.96,4.92120326]
[1764544171553,0.7,137.0,136.95,5.58120326]
[1764544171755,7.2998029,136.99,136.96,0.66]
[1764544172798,7.2998029,136.99,136.96,5.58120326]
[1764544173782,0.7,136.99,136.96,0.66]
[1764544175882,7.9998974,136.99,136.96,0.66]
[1764544176979,7.29927007,137.0,136.97,2.06460161]
[1764544177169,7.99927007,137.0,136.96,2.72460161]
[1764544177364,0.7,136.99,136.96,2.72460161]
[1764544179185,7.99980351,136.99,136.96,2.72460161]
[1764544180985,25.5455806,137.01,136.96,2.72460161]
[1764544181284,25.5455806,137.01,136.96,0.66]
[1764544181285,0.7,137.0,136.96,0.66]
[1764544181465,0.7,137.0,136.96,2.72460161]
[1764544183189,7.2998029,136.99,136.96,2.72460161]
[1764544183394,9.36440451,136.99,136.93,7.96268106]
[1764544183597,2.76460161,136.98,136.93,13.24728267]
[1764544183892,0.7,136.98,136.93,13.24728267]
[1764544184083,0.7,136.97,136.94,0.66]
[1764544184997,8.00093995,136.97,136.94,0.66]
[1764544185494,8.00093995,136.97,136.94,2.72460161]
[1764544187696,20.31410887,136.99,136.96,2.06460161]
[1764544187697,7.30026471,136.99,136.96,2.06460161]
[1764544187996,8.00026471,136.99,136.96,2.72460161]
[1764544188777,7.30026471,136.99,136.95,9.36616878]
[1764544188973,0.7,136.98,136.95,10.02616878]
[1764544189386,0.7,136.98,136.95,9.36616878]
[1764544189882,0.7,136.98,136.95,7.30156717]
[1764544190081,0.7,136.98,136.94,18.83690885]
[1764544190671,8.00057688,136.98,136.94,18.83690885]
[1764544191597,0.7,136.97,136.94,18.83690885]
[1764544192121,0.7,136.97,136.87,75.0]
[1764544192395,0.7,136.97,136.89,2.06460161]
[1764544192396,2.06460161,136.95,136.89,2.06460161]
[1764544192902,0.7,136.94,136.89,2.72460161]
[1764544193400,0.7,136.94,136.9,0.66]
[1764544193699,7.30300153,136.93,136.89,2.72460161]
[1764544193900,7.30300153,136.93,136.9,0.66]
[1764544194201,8.00300153,136.93,136.9,0.66]
[1764544194702,8.00300153,136.93,136.89,3.22881987]
[1764544194904,8.00300153,136.93,136.89,3.88881987]
[1764544195096,8.00300153,136.93,136.89,11.19394593]
[1764544195293,0.7,136.93,136.9,0.66]
[1764544195491,0.7,136.93,136.9,3.88881987]
[1764544195890,8.00316168,136.93,136.9,3.88881987]
[1764544197887,8.00316168,136.93,136.89,8.01512606]
[1764544198198,8.00316168,136.93,136.89,10.53394593]
[1764544198407,8.00316168,136.93,136.9,0.71]
[1764544199508,8.00316168,136.93,136.9,3.93881987]
[1764544200903,8.00316168,136.93,136.9,3.22881987]
[1764544201597,0.68,136.92,136.88,3.22881987]
[1764544202097,3.90881987,136.92,136.87,75.96453741]
[1764544202286,0.68,136.92,136.88,3.22881987]
[1764544202482,7.98448623,136.91,136.88,3.22881987]
[1764544202905,0.68,136.9,136.88,3.22881987]
[1764544203109,7.30448623,136.91,136.88,3.93881987]
[1764544203110,7.98448623,136.91,136.88,3.93881987]
[1764544203810,7.30365989,136.92,136.9,3.22881987]
[1764544204183,7.30365989,136.92,136.9,3.93881987]
[1764544205414,7.30300153,136.93,136.9,3.93881987]
[1764544206813,0.68,136.93,136.9,3.93881987]
[1764544207816,7.98329829,136.93,136.9,3.93881987]
[1764544208605,7.98329829,136.93,136.91,3.22881987]
[1764544208913,7.98216203,136.95,136.92,3.22881987]
[1764544209101,7.98216203,136.95,136.93,3.22881987]
[1764544209490,7.30042381,136.98,136.94,3.22881987]
[1764544209794,7.97931175,137.0,136.97,3.22881987]
[1764544210104,7.97931175,137.0,136.98,3.22881987]
[1764544210496,0.68,137.0,136.98,3.22881987]
[1764544211014,7.97886163,137.01,136.98,3.22881987]
[1764544211604,0.68,137.0,136.98,3.22881987]
[1764544212010,11.19831322,137.02,136.98,10.52901662]
[1764544212301,0.68,137.04,137.0,3.22881987]
[1764544212502,7.97734592,137.04,137.0,3.22881987]
[1764544212717,7.97734592,137.04,136.99,3.22881987]
[1764544212920,0.68,137.03,136.99,3.22881987]
[1764544213707,11.19673419,137.05,137.02,3.22881987]
[1764544213929,0.68,137.04,137.01,3.22881987]
[1764544214110,0.68,137.04,137.0,3.22881987]
[1764544216423,3.22881987,137.02,136.96,3.22881987]
[1764544216629,6.44881987,137.02,136.96,3.22881987]
[1764544216830,0.68,137.01,136.97,3.22881987]
[1764544217832,7.29927007,137.0,136.97,3.22881987]
[1764544218208,0.68,136.99,136.97,3.22881987]
[1764544219132,7.97873731,137.01,136.97,3.22881987]
[1764544219502,0.68,137.0,136.97,3.22881987]
[1764544221708,0.68,137.0,136.97,10.5293742]
[1764544222034,0.68,137.0,136.97,11.2393742]
[1764544223106,7.97660707,137.05,136.99,3.22881987]
[1764544223318,0.68,137.04,137.01,3.22881987]
[1764544224313,7.9772961,137.04,137.01,3.22881987]
[1764544224519,7.9772961,137.04,137.0,10.52801436]
[1764544224747,0.65,137.03,137.0,7.29919449]
[1764544224909,0.65,137.03,137.0,11.20801436]
[1764544230417,7.94768045,137.03,136.98,7.30013608]
[1764544230751,0.69,137.02,136.99,12.03876479]
[1764544230927,0.69,137.02,136.98,3.22881987]
[1764544231459,0.69,137.02,136.98,3.89881987]
[1764544232360,7.29873731,137.01,136.98,3.89881987]
[1764544232732,7.98873731,137.01,136.98,3.89881987]
[1764544233556,0.69,137.0,136.97,3.22881987]
[1764544233834,0.69,137.0,136.97,12.70876479]
[1764544234266,0.69,137.0,136.97,8.80994492]
[1764544234449,7.98959055,137.0,136.97,8.80994492]
[1764544234650,7.98959055,137.0,136.97,12.03876479]
[1764544234879,0.69,137.0,136.97,20.00961115]
[1764544235033,0.69,137.0,136.97,12.70876479]
[1764544235362,7.98930684,137.0,136.97,12.70876479]
[1764544235669,7.29889744,137.01,136.98,3.89881987]
[1764544235859,7.98889744,137.01,136.98,3.22881987]
[1764544237280,25.54452005,137.02,136.98,3.22881987]
[1764544237468,25.54452005,137.02,136.97,12.70876479]
[1764544237469,0.69,137.0,136.97,12.70876479]
[1764544238543,0.69,137.0,136.97,0.67]
[1764544238876,0.69,137.0,136.97,3.89881987]
[1764544239167,7.98932703,137.0,136.97,3.89881987]
[1764544240271,7.98932703,137.0,136.97,3.22881987]
[1764544240566,0.69,137.0,136.97,3.22881987]
[1764544240955,0.69,137.0,136.97,3.89881987]
[1764544243373,7.98873731,137.01,136.98,3.89881987]
[1764544243671,7.98873731,137.01,136.98,3.22881987]
[1764544243870,11.20812348,137.03,136.99,3.89881987]
[1764544244268,10.51812348,137.03,136.99,3.89881987]
[1764544244567,0.69,137.02,136.99,3.89881987]
[1764544247053,7.9882275,137.02,137.0,3.22881987]
[1764544247249,19.53768387,137.01,136.94,10.53091735]
[1764544247469,3.22881987,136.99,136.94,7.30209748]
[1764544247769,3.22881987,136.99,136.94,10.53091735]
[1764544247969,0.69,136.98,136.94,3.22881987]
[1764544248373,3.91881987,136.98,136.93,20.01169909]
[1764544248562,3.91881987,136.98,136.93,19.34169909]
[1764544248765,0.69,136.97,136.93,19.34169909]
[1764544249071,7.99094561,136.97,136.93,19.34169909]
[1764544249577,0.69,136.96,136.93,19.34169909]
[1764544251073,7.99052048,136.98,136.94,3.89881987]
[1764544251275,7.30052048,136.98,136.94,3.22881987]
[1764544251466,0.69,136.97,136.94,3.22881987]
[1764544252169,0.69,136.97,136.94,3.89881987]
[1764544252374,0.69,136.97,136.94,0.67]
[1764544253473,3.22881987,136.95,136.92,3.81242511]
[1764544253664,3.22881987,136.94,136.89,0.67]
[1764544253853,0.69,136.95,136.89,0.67]
[1764544254169,10.53177336,136.94,136.89,7.97501128]
[1764544254370,10.53177336,136.94,136.9,3.22]
[1764544254576,0.69,136.93,136.9,3.22]
[1764544255279,7.99305286,136.93,136.9,3.22]
[1764544255850,0.7,136.92,136.9,3.22]
[1764544256051,21.47453106,136.96,136.91,0.7]
[1764544256052,0.7,136.95,136.91,0.7]
[1764544256455,8.00103018,136.97,136.92,8.80994492]
[1764544256660,7.30103018,136.97,136.93,3.22]
[1764544256862,8.00103018,136.97,136.93,3.92]
[1764544257057,8.00103018,136.97,136.94,0.7]
[1764544257259,8.00103018,136.97,136.93,3.92]
[1764544257552,0.7,136.96,136.93,11.2228394]
[1764544258574,8.00041204,136.98,136.94,8.80994492]
[1764544258777,8.00041204,136.98,136.94,9.50994492]
[1764544258949,0.7,136.97,136.94,9.50994492]
[1764544260273,0.7,136.97,136.94,16.8122822]
[1764544261075,10.06695402,136.97,136.93,7.30298054]
[1764544261273,10.06695402,136.97,136.94,3.22]
[1764544261473,0.7,136.96,136.94,3.22]
[1764544261869,7.30113919,136.97,136.94,3.22]
[1764544262074,0.7,136.96,136.94,3.22]
[1764544262960,7.30113919,136.97,136.94,3.22]
[1764544263181,0.7,136.96,136.94,3.22]
[1764544266287,25.55018964,136.99,136.94,3.22]
[1764544266485,0.7,136.98,136.94,3.22]
[1764544266668,2.06581483,136.97,136.94,3.22]
[1764544266863,2.76581483,136.98,136.94,3.22]
[1764544267490,7.3008688,136.97,136.93,8.00298054]
[1764544267786,7.3008688,136.97,136.94,3.22]
[1764544267787,8.0008688,136.97,136.94,3.22]
[1764544267986,0.7,136.96,136.94,3.22]
[1764544268185,7.3008688,136.97,136.94,3.22]
[1764544268383,0.7,136.98,136.95,0.7]
[1764544268384,8.00050031,136.98,136.95,0.7]
[1764544268689,0.7,137.03,136.97,2.06581483]
[1764544268883,7.29820464,137.02,136.98,14.09575975]
[1764544269392,7.29820464,137.02,136.99,0.7]
[1764544270370,7.99820464,137.02,136.99,0.7]
[1764544270583,0.7,137.01,136.98,14.09575975]
[1764544270784,0.7,137.01,136.98,21.39606017]
[1764544270981,0.7,137.01,136.98,14.09575975]
[1764544271289,0.7,137.01,136.98,12.02994492]
[1764544271665,0.7,137.01,136.98,20.03022426]
[1764544273480,0.7,137.01,136.98,22.09603909]
[1764544273877,0.7,137.01,136.98,12.02994492]
[1764544274274,0.7,137.01,136.98,12.72994492]
[1764544274474,0.7,137.01,136.98,20.0301622]
[1764544274671,0.7,137.01,136.98,8.80994492]
[1764544274976,7.99890796,137.01,136.95,3.22]
[1764544275182,2.76581483,137.0,136.95,3.22]
[1764544275593,0.7,136.99,136.95,3.22]
[1764544275888,7.30033581,136.98,136.95,3.22]
[1764544276290,2.06581483,136.96,136.91,8.80994492]
[1764544276494,0.7,136.97,136.91,3.22]
[1764544276495,2.06581483,136.95,136.91,3.22]
[1764544276968,25.55117534,136.98,136.88,8.00529077]
[1764544276969,2.76581483,136.94,136.88,8.00529077]
[1764544277165,2.06581483,136.93,136.89,12.02994492]
[1764544277364,0.7,136.93,136.89,12.02994492]
[1764544277594,0.7,136.92,136.89,12.02994492]
[1764544277791,0.7,136.93,136.89,20.03476356]
[1764544277981,0.7,136.93,136.89,22.10057839]
[1764544278697,10.06794057,136.95,136.9,0.7]
[1764544278992,0.7,136.94,136.89,21.40057839]
[1764544279301,2.76581483,136.94,136.89,12.02994492]
[1764544279477,2.76581483,136.94,136.89,20.03493685]
[1764544279812,0.7,136.93,136.89,20.03493685]
[1764544280193,0.7,136.98,136.93,8.80994492]
[1764544280396,0.7,136.98,136.94,3.22]
[1764544280603,0.7,136.98,136.94,5.28581483]
[1764544281383,18.95104476,136.98,136.94,5.28581483]
[1764544281891,0.7,136.97,136.94,5.28581483]
[1764544282700,0.7,136.97,136.95,2.06581483]
[1764544283400,8.00000151,136.99,136.96,2.06581483]
[1764544283793,7.96000151,136.99,136.97,2.06581483]
[1764544283988,7.96000151,136.99,136.96,2.06581483]
[1764544289109,0.66,136.99,136.97,2.06581483]
[1764544290298,0.66,136.99,136.96,2.06581483]
[1764544290612,0.66,136.99,136.96,9.36719478]
[1764544291394,0.66,136.99,136.97,2.06581483]
[1764544297020,0.66,136.99,136.96,7.30137995]
[1764544297327,0.66,136.99,136.97,2.06581483]
[1764544299329,0.66,136.99,136.98,2.06581483]
[1764544299633,0.69,137.03,136.98,2.06581483]
[1764544299935,0.69,137.02,137.01,2.06581483]
[1764544300726,7.98820464,137.02,137.01,2.06581483]
[1764544300912,7.98820464,137.02,136.98,11.2098843]
[1764544301114,7.98820464,137.02,137.01,2.06581483]
[1764544301815,7.29767204,137.03,137.01,2.06581483]
[1764544302106,7.29767204,137.03,136.99,2.06581483]
[1764544302433,0.69,137.02,136.99,2.06581483]
[1764544303012,7.98834137,137.02,137.0,2.06581483]
[1764544303212,0.69,137.01,137.0,2.06581483]
[1764544314942,0.69,137.01,136.95,16.308864]
[1764544314943,7.98873731,137.01,136.95,16.308864]
[1764544315145,7.98873731,137.01,136.97,2.06581483]
[1764544315445,0.69,137.0,136.97,2.06581483]
[1764544315823,0.69,137.0,136.98,2.06581483]
[1764544316222,7.98933556,137.0,136.98,2.06581483]
[1764544316523,13.27455214,137.04,136.98,2.06581483]
[1764544316723,0.72,137.04,137.02,2.06581483]
[1764544316923,8.01713952,137.04,137.02,2.06581483]
[1764544317224,8.01713952,137.04,137.01,2.06581483]
[1764544317425,0.72,137.03,137.01,2.06581483]
[1764544318039,7.29734867,137.04,137.02,2.06581483]
[1764544318353,0.72,137.05,137.03,3.22239559]
[1764544318532,3.22,137.07,137.02,0.71]
[1764544318533,21.4595608,137.07,137.04,3.22239559]
[1764544318720,11.23576782,137.07,137.05,3.22239559]
[1764544319236,0.72,137.06,137.05,3.22239559]
[1764544319441,0.72,137.06,137.04,3.22239559]
[1764544320148,8.01621142,137.06,137.04,3.22239559]
[1764544320444,8.01621142,137.06,137.03,3.22239559]
[1764544320652,0.72,137.05,137.01,3.22239559]
[1764544321646,3.94239559,137.05,136.98,26.82879299]
[1764544321857,3.94239559,137.05,137.0,3.22239559]
[1764544322026,0.72,137.04,137.0,3.22239559]
[1764544322344,7.29767204,137.03,137.0,3.22239559]
[1764544322535,7.29767204,137.03,137.01,3.22239559]
[1764544322733,8.01767204,137.03,137.02,3.22239559]
[1764544322931,8.01767204,137.03,137.01,3.22239559]
[1764544323335,0.72,137.02,137.01,3.22239559]
[1764544323536,0.72,137.02,137.0,3.22239559]
[1764544324252,0.72,137.02,137.01,3.22239559]
[1764544324945,8.01820464,137.02,136.98,3.22239559]
[1764544325154,0.72,137.01,136.98,3.22239559]
[1764544325847,0.72,137.01,136.97,3.22239559]
[1764544326148,7.29927007,137.0,136.96,3.22239559]
[1764544326349,7.29927007,137.0,136.96,3.93239559]
[1764544326548,0.72,136.99,136.97,3.22239559]
[1764544326742,8.01927007,137.0,136.97,3.22239559]
[1764544326938,0.72,136.99,136.95,19.53125959]
[1764544327152,0.72,136.99,136.95,3.22239559]
[1764544327353,3.22239559,136.98,136.93,3.22239559]
[1764544327548,3.22239559,136.95,136.9,3.22239559]
[1764544327961,8.02297187,136.94,136.91,3.22239559]
[1764544332037,0.72,136.96,136.93,3.22239559]
[1764544333752,3.94239559,136.96,136.91,3.22]
[1764544333953,3.94239559,136.96,136.91,6.44239559]
[1764544334154,26.27677254,136.95,136.91,6.44239559]
[1764544334460,26.27677254,136.95,136.92,3.22239559]
[1764544334670,26.27677254,136.95,136.92,3.93239559]
[1764544334962,26.27677254,136.95,136.92,0.71]
[1764544335264,26.27677254,136.95,136.92,3.22239559]
[1764544336643,8.02193501,136.95,136.92,3.22239559]
[1764544336962,8.02193501,136.95,136.92,3.93239559]
[1764544337661,8.02193501,136.95,136.92,3.22239559]
[1764544338960,25.55677254,136.95,136.91,3.22239559]
[1764544339178,0.72,136.94,136.89,0.71]
[1764544339462,0.72,136.94,136.9,3.22239559]
[1764544340465,7.30300153,136.93,136.9,3.93239559]
[1764544340764,7.30300153,136.93,136.91,3.22239559]
[1764544341064,7.30300153,136.93,136.92,3.22239559]
[1764544341951,8.02300153,136.93,136.9,3.22239559]
[1764544342959,0.72,136.92,136.89,3.22239559]
[1764544344064,8.02399449,136.92,136.89,3.22239559]
[1764544345156,8.02399449,136.92,136.9,3.22239559]
[1764544345871,7.30399449,136.92,136.9,3.22239559]
[1764544346073,7.30399449,136.92,136.91,3.90239559]
[1764544346376,7.30321915,136.93,136.91,3.90239559]
[1764544346674,7.30321915,136.93,136.92,3.22239559]
[1764544347946,18.25726599,136.94,136.92,3.22239559]
[1764544348176,18.94726599,136.94,136.92,3.22239559]
[1764544349071,26.24973422,136.94,136.91,3.22239559]
[1764544349575,26.24973422,136.94,136.91,3.90239559]
[1764544350381,0.69,136.97,136.93,3.22239559]
[1764544350665,0.69,136.97,136.94,3.22239559]
[1764544351377,0.69,136.97,136.92,3.22239559]
[1764544351661,3.91239559,136.97,136.92,3.22239559]
[1764544352042,0.69,136.96,136.92,3.22239559]
[1764544352447,7.30193501,136.95,136.92,3.90239559]
[1764544352847,7.99193501,136.95,136.92,3.90239559]
[1764544354661,7.99193501,136.95,136.93,3.22239559]
[1764544363487,0.69,136.96,136.94,3.22239559]
[1764544363694,25.55353796,136.97,136.94,3.22239559]
[1764544363857,25.55353796,136.97,136.96,3.22239559]
[1764544364056,0.69,136.96,136.94,3.22239559]
[1764544364261,25.55353796,136.97,136.94,3.22239559]
[1764544364461,26.24353796,136.97,136.94,3.22239559]
[1764544364695,26.24353796,136.97,136.94,3.90239559]
[1764544365392,0.69,136.96,136.92,3.22239559]
[1764544365578,0.69,136.96,136.92,3.90239559]
[1764544365888,0.69,136.96,136.92,3.22239559]
[1764544366064,0.69,136.96,136.91,3.22239559]
[1764544366259,3.91239559,136.96,136.91,6.44239559]
[1764544366662,0.69,136.95,136.91,7.12239559]
[1764544367190,7.30246823,136.94,136.91,6.44239559]
[1764544367486,10.52486382,136.94,136.88,3.22]
[1764544367684,0.69,136.93,136.89,3.22239559]
[1764544368482,7.30353491,136.92,136.89,3.22239559]
[1764544368972,7.30353491,136.92,136.89,3.90239559]
[1764544369184,7.99353491,136.92,136.89,3.90239559]
[1764544369989,7.99353491,136.92,136.9,3.22239559]
[1764544372057,7.30353491,136.92,136.9,3.22239559]
[1764544372294,7.30315328,136.93,136.91,3.90239559]
[1764544372761,18.25617058,136.94,136.92,3.90239559]
[1764544372762,7.30264577,136.94,136.92,3.90239559]
[1764544372960,0.69,136.93,136.92,3.22239559]
[1764544373161,0.69,136.93,136.91,3.22239559]
[1764544373690,7.30033581,136.98,136.92,7.12239559]
[1764544373985,7.30140186,136.96,136.95,3.22239559]
[1764544374288,7.30140186,136.96,136.93,3.22239559]
[1764544374457,0.69,136.95,136.93,3.22239559]
[1764544375287,7.99244412,136.95,136.93,3.22239559]
[1764544376882,7.99244412,136.95,136.94,3.22239559]
[1764544377079,7.30244412,136.95,136.94,3.22239559]
[1764544377968,0.69,136.95,136.94,3.22239559]
[1764544378163,18.94350467,136.96,136.94,3.22239559]
[1764544378969,26.24490653,136.96,136.94,3.22239559]
[1764544379481,26.24490653,136.96,136.95,3.22239559]
[1764544379887,18.25350467,136.96,136.95,3.22239559]
[1764544380571,18.25350467,136.96,136.95,2.06504365]
[1764544380989,7.3008688,136.97,136.95,2.73504365]
[1764544381206,7.3008688,136.97,136.96,2.06504365]
[1764544382077,7.30033581,136.98,136.96,5.95504365]
[1764544382412,7.29965099,137.0,136.97,2.73504365]
[1764544382574,7.29965099,137.0,136.99,2.06504365]
[1764544383499,0.89,137.08,137.03,16.308864]
[1764544383694,0.89,137.08,137.07,2.06504365]
[1764544383885,0.2,137.08,137.07,2.06504365]
[1764544384086,7.49516381,137.08,137.07,2.06504365]
[1764544384496,0.2,137.08,137.07,2.06504365]
[1764544385074,7.49501021,137.08,137.04,7.29712105]
[1764544385281,8.18501021,137.08,137.07,2.06504365]
[1764544385999,8.18501021,137.08,137.06,2.06504365]
[1764544386997,8.18501021,137.08,137.05,2.06504365]
[1764544387703,8.18501021,137.08,137.06,2.06504365]
[1764544387901,0.69,137.07,137.06,2.06504365]
[1764544388092,7.98554242,137.07,137.03,2.06504365]
[1764544388600,0.69,137.06,137.03,2.06504365]
[1764544389175,7.29660707,137.05,137.01,2.06504365]
[1764544389598,7.98660707,137.05,137.01,2.06504365]
[1764544390198,7.98660707,137.05,137.02,2.06504365]
[1764544391008,0.2,137.08,137.04,2.06504365]
[1764544391313,0.2,137.08,137.06,2.06504365]
[1764544392304,0.2,137.08,137.04,7.29713952]
[1764544392481,0.2,137.08,137.07,2.06504365]
[1764544393006,0.2,137.08,137.06,2.06504365]
[1764544394400,0.89,137.08,137.06,4.90827159]
[1764544395108,8.18503792,137.08,137.05,4.90827159]
[1764544395897,0.89,137.08,137.06,4.90827159]
[1764544396500,0.2,137.08,137.07,8.12827159]
[1764544396806,18.43129046,137.13,137.07,8.12827159]
[1764544396807,4.09827159,137.15,137.07,17.60821651]
[1764544396987,4.09827159,137.15,137.09,4.90827159]
[1764544397197,30.42825601,137.15,137.1,4.90827159]
[1764544398002,25.51998442,137.15,137.1,4.90827159]
[1764544398201,25.51998442,137.15,137.1,5.57827159]
[1764544398785,7.98230115,137.14,137.1,5.57827159]
[1764544403117,7.98230115,137.14,137.1,4.90827159]
[1764544403420,7.98265075,137.13,137.1,4.90827159]
[1764544403992,7.98265075,137.13,137.09,12.20257787]
[1764544404202,7.98265075,137.13,137.09,12.89257787]
[1764544404203,7.29265075,137.13,137.09,12.89257787]
[1764544405631,7.29265075,137.13,137.11,4.90827159]
[1764544405800,7.29078476,137.16,137.12,4.90827159]
[1764544405994,7.29078476,137.16,137.13,4.90827159]
[1764544406303,7.29078476,137.16,137.13,5.56827159]
[1764544406890,8.00078476,137.16,137.13,4.90827159]
[1764544407093,8.00078476,137.16,137.14,4.90827159]
[1764544408588,8.00078476,137.16,137.12,16.76239447]
[1764544408589,0.71,137.15,137.12,4.90827159]
[1764544408790,0.71,137.15,137.11,8.12827159]
[1764544409226,0.71,137.15,137.1,7.29355249]
[1764544409431,4.90827159,137.14,137.09,8.12827159]
[1764544409636,5.61827159,137.15,137.09,8.12827159]
[1764544409797,0.71,137.14,137.09,8.12827159]
[1764544411128,7.29235032,137.13,137.09,15.4226615]
[1764544411334,8.00235032,137.13,137.1,4.90827159]
[1764544412016,7.29235032,137.13,137.1,4.90827159]
[1764544412534,8.00235032,137.13,137.1,4.90827159]
[1764544413006,7.29235032,137.13,137.1,4.90827159]
[1764544413206,0.71,137.12,137.1,4.90827159]
[1764544413929,8.001831,137.14,137.1,4.90827159]
[1764544414317,0.71,137.13,137.1,4.90827159]
[1764544414520,0.71,137.13,137.1,2.06003282]
[1764544415121,8.00253152,137.13,137.1,2.06003282]
[1764544419439,0.71,137.14,137.11,2.06003282]
[1764544420026,8.00207301,137.14,137.11,2.06003282]
[1764544420210,8.00207301,137.14,137.1,10.01394073]
[1764544421543,0.71,137.13,137.1,5.28003282]
[1764544424134,8.00238584,137.13,137.1,5.28003282]
[1764544424334,0.71,137.12,137.1,5.28003282]
[1764544424736,0.71,137.12,137.07,79.86889682]
[1764544424942,0.71,137.12,137.08,3.22]
[1764544425616,2.06003282,137.11,137.05,9.35649609]
[1764544425818,0.71,137.12,137.06,3.22]
[1764544426018,2.77003282,137.11,137.06,5.28003282]
[1764544426321,7.29394602,137.1,137.06,5.28003282]
[1764544426522,8.00394602,137.1,137.06,5.28003282]
[1764544426733,0.71,137.09,137.06,5.28003282]
[1764544427039,0.71,137.09,137.06,5.94003282]
[1764544427238,8.00457525,137.09,137.06,5.94003282]
[1764544430139,8.00457525,137.09,137.06,5.28003282]
[1764544430625,7.29457525,137.09,137.05,2.06003282]
[1764544430825,0.71,137.08,137.06,3.22]
[1764544432450,8.00522198,137.08,137.06,3.22]
[1764544433860,8.00522198,137.08,137.04,33.07581844]
[1764544434165,0.71,137.07,137.05,3.22]
[1764544434459,2.77003282,137.07,137.05,3.22]
[1764544434655,2.77003282,137.07,137.03,7.29762053]
[1764544434866,0.71,137.06,137.04,3.22]
[1764544435854,8.00607665,137.06,137.04,3.22]
[1764544436628,0.69,137.05,137.02,8.80994492]
[1764544436836,0.69,137.05,137.03,3.22]
[1764544437035,2.75003282,137.05,137.01,8.80994492]
[1764544437246,7.29713952,137.04,137.02,3.22]
[1764544437479,7.98713952,137.04,137.02,3.22]
[1764544437852,0.69,137.03,137.02,3.22]
[1764544438039,0.69,137.03,137.0,8.80994492]
[1764544438234,0.69,137.03,137.01,3.22]
[1764544439963,7.987789,137.03,137.01,3.22]
[1764544441032,0.69,137.02,136.99,7.29979635]
[1764544441243,0.69,137.02,136.99,16.10974127]
[1764544441448,0.69,137.02,137.0,3.22]
[1764544442059,7.98870635,137.02,136.98,3.81016497]
[1764544442366,11.2136279,137.02,136.99,3.22]
[1764544442540,0.69,137.01,136.99,3.22]
[1764544443468,7.29767204,137.03,137.0,0.69]
[1764544443643,7.29767204,137.03,137.0,3.91492155]
[1764544444861,7.29767204,137.03,137.01,0.69]
[1764544445952,7.29719893,137.04,137.02,3.22]
[1764544446257,7.98719893,137.04,137.02,3.22]
[1764544446843,7.29607471,137.06,137.03,0.69]
[1764544447066,7.98607471,137.06,137.03,0.69]
[1764544447243,7.29607471,137.06,137.03,0.69]
[1764544447567,0.69,137.07,137.03,11.21259359]
[1764544447775,7.9855515,137.07,137.04,0.69]
[1764544447949,7.9855515,137.07,137.05,3.22]
[1764544449069,7.29496914,137.09,137.05,3.22]
[1764544449250,0.69,137.08,137.05,7.13492155]
[1764544449767,0.69,137.08,137.05,6.44492155]
[1764544450468,0.69,137.08,137.05,14.43129124]
[1764544450767,7.9841461,137.1,137.06,3.91492155]
[1764544451070,7.9841461,137.1,137.06,3.22492155]
[1764544451369,0.69,137.09,137.06,3.22492155]